[Event "2nd Namma Bengaluru Open-B 2025"]
[Site "Bengaluru"]
[Date "2025.04.11"]
[Round "4.1"]
[White "Nayak, Biswajit"]
[Black "Mysha Perwez"]
[Result "1-0"]
[Annotator "NA"]
[ECO "D02"]
[WhiteElo "1979"]
[BlackElo "1766"]
[PlyCount "135"]
[EventDate "2025.04.10"]
[EventType "swiss"]
[EventCountry "IND"]
[SourceTitle "playchess.com"]
[Source "ChessBase"]
[SourceQuality "1"]
[TimeControl "3600+30"]

1. d4 {[%emt 0:01:15]} Nf6 {[%emt 0:00:11]} 2. Nf3 {[%emt 0:00:13]} e6 {[%emt 0:00:07]} 3. Bf4 {[%emt 0:00:15]} d5 {[%emt 0:00:06]} 4. e3 {[%emt 0:00:07]} c5 {[%emt 0:00:05]} 5. Nbd2 {[%emt 0:00:39]} Nc6 {[%emt 0:00:08]} 6. c3 {[%emt 0:00:07]} Bd6 {[%emt 0:00:03]} 7. Bg3 {[%emt 0:00:34]} O-O {[%emt 0:00:13]} 8. Bd3 {[%emt 0:00:07]} b6 {[%emt 0:00:05]} 9. O-O {[%emt 0:02:12]} Bb7 {[%emt 0:00:24]} 10. Qe2 {[%emt 0:00:28]} Ne7 {[%emt 0:04:07]} 11. Rad1 {[%emt 0:01:40]} Nf5 {[%emt 0:02:40]} 12. Bxd6 {[%emt 0:01:51]} Nxd6 {[%emt 0:02:35]} 13. Ne5 {[%emt 0:00:43]} Qe7 {[%emt 0:02:34]} 14. f4 {[%emt 0:09:45]} Nfe4 {[%emt 0:03:06]} 15. Nxe4 {[%emt 0:02:01]} dxe4 {[%emt 0:01:57]} 16. Ba6 {[%emt 0:00:42]} Bxa6 {[%emt 0:07:39]} 17. Qxa6 {[%emt 0:00:05]} Qb7 {[%emt 0:02:23]} 18. Qxb7 {[%emt 0:04:20]} Nxb7 {[%emt 0:00:10]} 19. dxc5 {[%emt 0:01:06]} Nxc5 {[%emt 0:00:52]} 20. Rd4 {[%emt 0:00:36]} Rac8 {[%emt 0:06:30]} 21. Rfd1 {[%emt 0:02:13]} Rfe8 {[%emt 0:02:19]} 22. Nc4 {[%emt 0:02:29]} Nb7 {[%emt 0:05:32]} 23. Rxe4 {[%emt 0:00:59]} Red8 {[%emt 0:01:06]} 24. Red4 {[%emt 0:00:59]} Rxd4 {[%emt 0:02:11]} 25. Rxd4 {[%emt 0:00:02]} Rc7 {[%emt 0:00:50]} 26. Nd6 {[%emt 0:03:27]} Nxd6 {[%emt 0:00:08]} 27. Rxd6 {[%emt 0:00:05]} Kf8 {[%emt 0:00:11]} 28. Rd8+ {[%emt 0:01:06]} Ke7 {[%emt 0:00:07]} 29. Ra8 {[%emt 0:00:04]} Rd7 {[%emt 0:01:06]} 30. Kf1 {[%emt 0:00:51]} Kd6 {[%emt 0:00:57]} 31. Ke2 {[%emt 0:00:42]} Kc6 {[%emt 0:01:35]} 32. g4 {[%emt 0:00:31]} f6 {[%emt 0:01:53]} 33. Re8 {[%emt 0:01:09]} Kd5 {[%emt 0:01:04]} 34. b3 {[%emt 0:01:42]} e5 {[%emt 0:01:00]} 35. fxe5 {[%emt 0:02:44]} fxe5 {[%emt 0:00:08]} 36. Kd3 {[%emt 0:00:13]} Rf7 {[%emt 0:02:04]} 37. c4+ {[%emt 0:00:47]} Kd6 {[%emt 0:00:14]} 38. Ra8 {[%emt 0:03:30]} a5 {[%emt 0:00:47]} 39. Rd8+ {[%emt 0:00:57]} Kc6 {[%emt 0:01:40]} 40. h4 {[%emt 0:03:06]} Rf2 {[%emt 0:01:21]} 41. Rg8 {[%emt 0:00:29]} g6 {[%emt 0:03:39]} 42. Rg7 {[%emt 0:00:25]} Rxa2 {[%emt 0:00:09]} 43. Rxh7 {[%emt 0:00:04]} Rb2 {[%emt 0:00:11]} 44. Kc3 {[%emt 0:02:57]} Re2 {[%emt 0:03:44]} 45. Rg7 {[%emt 0:00:21]} Rxe3+ {[%emt 0:00:11]} 46. Kc2 {[%emt 0:00:04]} Rh3 {[%emt 0:00:48]} 47. Rxg6+ {[%emt 0:00:13]} Kc5 {[%emt 0:00:11]} 48. h5 {[%emt 0:01:40]} e4 {[%emt 0:01:28]} 49. h6 {[%emt 0:01:24]} Rh2+ {[%emt 0:01:10]} 50. Kc3 {[%emt 0:00:28]} Rh3+ {[%emt 0:00:06]} 51. Kd2 {[%emt 0:00:20]} Kd4 {[%emt 0:02:01]} 52. Rd6+ {[%emt 0:02:07]} Ke5 {[%emt 0:00:09]} 53. Rd5+ {[%emt 0:02:14]} Kf4 {[%emt 0:01:28]} 54. Rh5 {[%emt 0:00:34]} Rd3+ {[%emt 0:00:04]} 55. Ke2 {[%emt 0:00:04]} Rd8 {[%emt 0:00:08]} 56. h7 {[%emt 0:00:14]} Rh8 {[%emt 0:00:13]} 57. g5 {[%emt 0:00:07]} Kf5 {[%emt 0:00:12]} 58. Ke3 {[%emt 0:00:12]} Kg6 {[%emt 0:00:25]} 59. Rh1 {[%emt 0:00:13]} Kxg5 {[%emt 0:00:43]} 60. Kxe4 {[%emt 0:00:08]} Kg6 {[%emt 0:00:46]} 61. Kd5 {[%emt 0:00:15]} Kg7 {[%emt 0:00:28]} 62. Kc6 {[%emt 0:00:26]} Rc8+ {[%emt 0:00:08]} 63. Kb7 {[%emt 0:20:39]} Rh8 {[%emt 0:00:21]} 64. Kxb6 {[%emt 0:00:00]} Rb8+ {[%emt 0:00:04]} 65. Ka7 {[%emt 0:00:00]} Rh8 {[%emt 0:00:08]} 66. c5 {[%emt 0:00:00]} Kf6 {[%emt 0:00:09]} 67. c6 {[%emt 0:00:00]} Ke6 {[%emt 0:00:03]} 68. Kb7 {[%emt 0:00:00]} 1-0

[Event "2nd Namma Bengaluru Open-B 2025"]
[Site "Bengaluru"]
[Date "2025.04.11"]
[Round "4.2"]
[White "Elesh Tripathi"]
[Black "Prashanth J Naik"]
[Result "1-0"]
[Annotator "NA"]
[ECO "D11"]
[WhiteElo "1758"]
[BlackElo "1979"]
[PlyCount "119"]
[EventDate "2025.04.10"]
[EventType "swiss"]
[EventCountry "IND"]
[SourceTitle "playchess.com"]
[Source "ChessBase"]
[SourceQuality "1"]
[TimeControl "3600+30"]

1. d4 {[%emt 0:00:30]} d5 {[%emt 0:03:12]} 2. g3 {[%emt 0:00:00]} Nf6 {[%emt 0:00:33]} 3. Bg2 {[%emt 0:00:00]} Bf5 {[%emt 0:00:08]} 4. Nf3 {[%emt 0:00:00]} h6 {[%emt 0:00:27]} 5. O-O {[%emt 0:00:01]} e6 {[%emt 0:00:02]} 6. c4 {[%emt 0:00:05]} c6 {[%emt 0:00:35]} 7. Nc3 {[%emt 0:00:06]} Be7 {[%emt 0:00:29]} 8. Nd2 {[%emt 0:00:11]} O-O {[%emt 0:02:28]} 9. e4 {[%emt 0:00:08]} dxe4 {[%emt 0:08:04]} 10. Ndxe4 {[%emt 0:00:30]} Nxe4 {[%emt 0:00:33]} 11. Nxe4 {[%emt 0:00:08]} Nd7 {[%emt 0:00:08]} 12. h3 {[%emt 0:02:12]} Nf6 {[%emt 0:00:45]} 13. Nc3 {[%emt 0:00:14]} Qb6 {[%emt 0:03:28]} 14. Na4 {[%emt 0:08:20]} Qa6 {[%emt 0:02:06]} 15. Qb3 {[%emt 0:01:38]} Rfd8 {[%emt 0:15:07]} 16. Rd1 {[%emt 0:09:03]} Rd7 {[%emt 0:07:02]} 17. Be3 {[%emt 0:04:01]} Rad8 {[%emt 0:01:12]} 18. Nc3 {[%emt 0:01:29]} Ne8 {[%emt 0:01:49]} 19. d5 {[%emt 0:04:41]} exd5 {[%emt 0:05:56]} 20. cxd5 {[%emt 0:00:40]} c5 {[%emt 0:00:27]} 21. Nb5 {[%emt 0:13:30]} Qg6 {[%emt 0:04:55]} 22. Rac1 {[%emt 0:02:22]} b6 {[%emt 0:00:11]} 23. Qa4 {[%emt 0:03:26]} Nd6 {[%emt 0:04:16]} 24. g4 {[%emt 0:04:41]} Be4 {[%emt 0:05:58]} 25. Nxa7 {[%emt 0:01:12]} h5 {[%emt 0:01:33]} 26. f3 {[%emt 0:01:16]} hxg4 {[%emt 0:01:00]} 27. hxg4 {[%emt 0:00:21]} Bd3 {[%emt 0:00:49]} 28. Nc6 {[%emt 0:00:26]} Re8 {[%emt 0:00:43]} 29. Ne5 {[%emt 0:00:14]} Bb5 {[%emt 0:00:09]} 30. Qa3 {[%emt 0:01:47]} Qf6 {[%emt 0:00:41]} 31. Nxd7 {[%emt 0:00:20]} Bxd7 {[%emt 0:00:01]} 32. Qa7 {[%emt 0:03:56]} Qe5 {[%emt 0:01:11]} 33. Bf2 {[%emt 0:00:52]} Bc8 {[%emt 0:00:30]} 34. Qxb6 {[%emt 0:00:34]} Nb7 {[%emt 0:00:29]} 35. Re1 {[%emt 0:01:02]} Qxd5 {[%emt 0:00:25]} 36. Rcd1 {[%emt 0:01:25]} Qg5 {[%emt 0:00:10]} 37. Qc6 {[%emt 0:01:45]} Rf8 {[%emt 0:00:27]} 38. Rd5 {[%emt 0:01:08]} Na5 {[%emt 0:00:41]} 39. Qxc5 {[%emt 0:00:31]} Bxc5 {[%emt 0:00:48]} 40. Rxg5 {[%emt 0:00:06]} Bxf2+ {[%emt 0:00:28]} 41. Kxf2 {[%emt 0:00:09]} Nc4 {[%emt 0:00:05]} 42. b3 {[%emt 0:00:23]} f6 {[%emt 0:00:18]} 43. Rc5 {[%emt 0:00:25]} Ne5 {[%emt 0:00:04]} 44. Bf1 {[%emt 0:00:28]} Rd8 {[%emt 0:00:11]} 45. Bc4+ {[%emt 0:00:33]} Kf8 {[%emt 0:00:19]} 46. Be2 {[%emt 0:00:21]} Be6 {[%emt 0:00:50]} 47. Rc2 {[%emt 0:00:29]} g5 {[%emt 0:00:14]} 48. Rd1 {[%emt 0:00:19]} Rb8 {[%emt 0:00:22]} 49. Rc7 {[%emt 0:00:23]} Ng6 {[%emt 0:00:38]} 50. Rd6 {[%emt 0:00:49]} Nf4 {[%emt 0:00:10]} 51. Bc4 {[%emt 0:00:29]} Re8 {[%emt 0:00:38]} 52. Bxe6 {[%emt 0:00:51]} Nxe6 {[%emt 0:00:04]} 53. Rcc6 {[%emt 0:00:14]} Nf4 {[%emt 0:00:03]} 54. Rxf6+ {[%emt 0:00:09]} Kg7 {[%emt 0:00:06]} 55. Rf5 {[%emt 0:00:12]} Re2+ {[%emt 0:00:08]} 56. Kf1 {[%emt 0:00:11]} Rxa2 {[%emt 0:00:31]} 57. Rxg5+ {[%emt 0:00:08]} Kh7 {[%emt 0:00:09]} 58. Rf5 {[%emt 0:00:18]} Ng2 {[%emt 0:00:18]} 59. Rf7+ {[%emt 0:00:20]} Kg8 {[%emt 0:00:04]} 60. Re7 {[%emt 0:00:32]} 1-0

[Event "2nd Namma Bengaluru Open-B 2025"]
[Site "Bengaluru"]
[Date "2025.04.11"]
[Round "4.3"]
[White "Saptarshi Talukdar"]
[Black "Anurag, Jaiswal"]
[Result "1/2-1/2"]
[Annotator "NA"]
[ECO "B01"]
[WhiteElo "1755"]
[BlackElo "1923"]
[PlyCount "55"]
[EventDate "2025.04.10"]
[EventType "swiss"]
[EventCountry "IND"]
[SourceTitle "playchess.com"]
[Source "ChessBase"]
[SourceQuality "1"]
[TimeControl "3600+30"]

1. e4 {[%emt 0:01:01]} d5 {[%emt 0:00:09]} 2. exd5 {[%emt 0:00:54]} Qxd5 {[%emt 0:00:09]} 3. Nc3 {[%emt 0:01:06]} Qa5 {[%emt 0:02:46]} 4. d4 {[%emt 0:01:13]} Nf6 {[%emt 0:00:06]} 5. Nf3 {[%emt 0:00:57]} c6 {[%emt 0:00:10]} 6. Bc4 {[%emt 0:00:52]} Bf5 {[%emt 0:00:09]} 7. Bd2 {[%emt 0:00:42]} e6 {[%emt 0:00:13]} 8. Nd5 {[%emt 0:03:06]} Qd8 {[%emt 0:00:07]} 9. Nxf6+ {[%emt 0:00:09]} gxf6 {[%emt 0:00:01]} 10. Be3 {[%emt 0:06:00]} Bd6 {[%emt 0:00:14]} 11. Qd2 {[%emt 0:01:40]} Qc7 {[%emt 0:00:17]} 12. Bd3 {[%emt 0:03:52]} Bxd3 {[%emt 0:00:47]} 13. Qxd3 {[%emt 0:00:17]} Nd7 {[%emt 0:00:06]} 14. O-O-O {[%emt 0:02:23]} O-O-O {[%emt 0:00:27]} 15. Kb1 {[%emt 0:01:04]} Kb8 {[%emt 0:01:49]} 16. g3 {[%emt 0:01:28]} Nb6 {[%emt 0:00:12]} 17. c4 {[%emt 0:00:49]} c5 {[%emt 0:01:36]} 18. b3 {[%emt 0:08:07]} Nd7 {[%emt 0:02:15]} 19. d5 {[%emt 0:02:07]} Ne5 {[%emt 0:16:38]} 20. Nxe5 {[%emt 0:02:10]} Bxe5 {[%emt 0:00:21]} 21. f4 {[%emt 0:01:19]} Bd6 {[%emt 0:00:15]} 22. Qc2 {[%emt 0:01:39]} f5 {[%emt 0:03:52]} 23. Bc1 {[%emt 0:00:55]} Rhe8 {[%emt 0:01:57]} 24. Bb2 {[%emt 0:28:40]} Kc8 25. Rhe1 {[%emt 0:00:30]} Bf8 {[%emt 0:38:24]} 26. Be5 {[%emt 0:00:30]} Qb6 27. Bf6 {[%emt 0:00:30]} Rd7 28. h3 {[%emt 0:00:30]} 1/2-1/2

[Event "2nd Namma Bengaluru Open-B 2025"]
[Site "Bengaluru"]
[Date "2025.04.11"]
[Round "4.4"]
[White "Afreed T Khan"]
[Black "Sharma Sai"]
[Result "1-0"]
[Annotator "NA"]
[ECO "E46"]
[WhiteElo "1921"]
[BlackElo "1757"]
[PlyCount "117"]
[EventDate "2025.04.10"]
[EventType "swiss"]
[EventCountry "IND"]
[SourceTitle "playchess.com"]
[Source "ChessBase"]
[SourceQuality "1"]
[TimeControl "3600+30"]

1. d4 {[%emt 0:00:54]} Nf6 {[%emt 0:00:03]} 2. c4 {[%emt 0:00:05]} e6 {[%emt 0:00:06]} 3. Nc3 {[%emt 0:00:03]} Bb4 {[%emt 0:00:08]} 4. e3 {[%emt 0:00:04]} O-O {[%emt 0:00:08]} 5. Bd3 {[%emt 0:00:03]} d5 {[%emt 0:00:16]} 6. Bd2 {[%emt 0:00:10]} c5 {[%emt 0:12:49]} 7. a3 {[%emt 0:03:06]} cxd4 {[%emt 0:01:14]} 8. axb4 {[%emt 0:00:24]} dxc3 {[%emt 0:00:06]} 9. Bxc3 {[%emt 0:00:06]} dxc4 {[%emt 0:00:30]} 10. Bxc4 {[%emt 0:00:31]} Nd5 {[%emt 0:00:40]} 11. Bxd5 {[%emt 0:01:23]} exd5 {[%emt 0:06:03]} 12. Nf3 {[%emt 0:01:58]} f6 {[%emt 0:06:14]} 13. Ra5 {[%emt 0:04:04]} Be6 {[%emt 0:04:57]} 14. Nd4 {[%emt 0:00:03]} Bf7 {[%emt 0:01:07]} 15. Qg4 {[%emt 0:02:48]} Qd7 {[%emt 0:05:06]} 16. Qxd7 {[%emt 0:09:53]} Nxd7 {[%emt 0:00:03]} 17. O-O {[%emt 0:00:13]} a6 {[%emt 0:09:12]} 18. Rfa1 {[%emt 0:01:31]} Rac8 {[%emt 0:04:52]} 19. Nf5 {[%emt 0:01:55]} Rb8 {[%emt 0:03:40]} 20. b5 {[%emt 0:03:01]} axb5 {[%emt 0:02:17]} 21. Rxb5 {[%emt 0:00:12]} Ra8 {[%emt 0:00:27]} 22. Rxa8 {[%emt 0:00:18]} Rxa8 {[%emt 0:00:02]} 23. h3 {[%emt 0:00:12]} b6 {[%emt 0:00:28]} 24. Ne7+ {[%emt 0:00:35]} Kf8 {[%emt 0:02:30]} 25. Nxd5 {[%emt 0:00:18]} Bxd5 {[%emt 0:01:36]} 26. Rxd5 {[%emt 0:00:04]} Ra7 {[%emt 0:00:28]} 27. g4 {[%emt 0:00:31]} Kf7 {[%emt 0:00:25]} 28. g5 {[%emt 0:02:56]} Ke6 {[%emt 0:03:45]} 29. Rb5 {[%emt 0:00:15]} Ra8 {[%emt 0:01:01]} 30. Kg2 {[%emt 0:00:40]} Rc8 {[%emt 0:00:28]} 31. Bd4 {[%emt 0:00:35]} Ra8 {[%emt 0:02:08]} 32. gxf6 {[%emt 0:01:29]} gxf6 {[%emt 0:00:05]} 33. Rh5 {[%emt 0:00:07]} Rh8 {[%emt 0:00:59]} 34. Kf3 {[%emt 0:00:16]} Kf7 {[%emt 0:01:15]} 35. Kf4 {[%emt 0:00:12]} Ke6 {[%emt 0:00:58]} 36. Ke4 {[%emt 0:00:49]} h6 {[%emt 0:00:24]} 37. Kd3 {[%emt 0:00:25]} Kf7 {[%emt 0:00:35]} 38. Kc4 {[%emt 0:01:05]} Kg6 {[%emt 0:00:32]} 39. Rd5 {[%emt 0:01:01]} Rc8+ {[%emt 0:00:30]} 40. Kb4 {[%emt 0:02:54]} Rc7 {[%emt 0:00:35]} 41. Kb5 {[%emt 0:00:33]} Kf7 {[%emt 0:00:28]} 42. f4 {[%emt 0:00:43]} Ra7 {[%emt 0:01:44]} 43. Kc6 {[%emt 0:00:43]} Ke6 {[%emt 0:00:26]} 44. Rh5 {[%emt 0:00:44]} Ra1 {[%emt 0:00:35]} 45. f5+ {[%emt 0:00:47]} Ke7 {[%emt 0:00:08]} 46. Rxh6 {[%emt 0:00:08]} Rc1+ {[%emt 0:00:12]} 47. Kd5 {[%emt 0:00:05]} Ne5 {[%emt 0:00:31]} 48. Bxb6 {[%emt 0:01:35]} Rf1 {[%emt 0:00:47]} 49. Rh7+ {[%emt 0:00:48]} Nf7 {[%emt 0:00:26]} 50. Bc5+ {[%emt 0:00:35]} Ke8 {[%emt 0:00:08]} 51. b4 {[%emt 0:07:59]} Rxf5+ {[%emt 0:00:10]} 52. Kc6 {[%emt 0:00:08]} Rf1 {[%emt 0:00:43]} 53. Rxf7 {[%emt 0:02:04]} Kxf7 {[%emt 0:00:02]} 54. b5 {[%emt 0:00:01]} Rh1 {[%emt 0:01:50]} 55. b6 {[%emt 0:00:06]} Rxh3 {[%emt 0:00:04]} 56. b7 {[%emt 0:00:04]} Rh8 {[%emt 0:00:53]} 57. Bd6 {[%emt 0:00:03]} Ke6 {[%emt 0:00:39]} 58. b8=Q {[%emt 0:00:04]} Rxb8 {[%emt 0:00:09]} 59. Bxb8 {[%emt 0:00:05]} 1-0

[Event "2nd Namma Bengaluru Open-B 2025"]
[Site "Bengaluru"]
[Date "2025.04.11"]
[Round "4.5"]
[White "Arush A"]
[Black "Raveesh Kote"]
[Result "1/2-1/2"]
[Annotator "NA"]
[ECO "B92"]
[WhiteElo "1876"]
[BlackElo "1755"]
[PlyCount "129"]
[EventDate "2025.04.10"]
[EventType "swiss"]
[EventCountry "IND"]
[SourceTitle "playchess.com"]
[Source "ChessBase"]
[SourceQuality "1"]
[TimeControl "3600+30"]

1. e4 {[%emt 0:00:22]} c5 {[%emt 0:00:23]} 2. Nf3 {[%emt 0:00:12]} d6 {[%emt 0:00:11]} 3. d4 {[%emt 0:00:10]} cxd4 {[%emt 0:00:11]} 4. Nxd4 {[%emt 0:00:26]} Nf6 {[%emt 0:00:18]} 5. Nc3 {[%emt 0:00:11]} a6 {[%emt 0:00:16]} 6. Be2 {[%emt 0:01:06]} e5 {[%emt 0:02:18]} 7. Nb3 {[%emt 0:00:50]} Be7 {[%emt 0:01:16]} 8. O-O {[%emt 0:02:01]} O-O {[%emt 0:01:12]} 9. Qd3 {[%emt 0:07:31]} Qc7 {[%emt 0:05:17]} 10. Bg5 {[%emt 0:04:07]} Nbd7 {[%emt 0:02:14]} 11. Rfd1 {[%emt 0:03:06]} h6 {[%emt 0:01:55]} 12. Bh4 {[%emt 0:07:48]} b5 {[%emt 0:03:02]} 13. a3 {[%emt 0:04:21]} Bb7 {[%emt 0:01:35]} 14. f3 {[%emt 0:00:50]} Rac8 {[%emt 0:03:18]} 15. Bf2 {[%emt 0:02:32]} Rfd8 {[%emt 0:03:29]} 16. Qd2 {[%emt 0:03:57]} Nf8 {[%emt 0:03:47]} 17. Qe1 {[%emt 0:02:44]} Ne6 {[%emt 0:02:11]} 18. Rac1 {[%emt 0:00:45]} d5 {[%emt 0:17:22]} 19. Nxd5 {[%emt 0:02:24]} Nxd5 {[%emt 0:00:11]} 20. exd5 {[%emt 0:00:24]} Bxd5 {[%emt 0:00:10]} 21. Nd2 {[%emt 0:01:39]} Bb7 {[%emt 0:11:38]} 22. Bf1 {[%emt 0:03:20]} Bg5 {[%emt 0:04:07]} 23. c4 {[%emt 0:03:55]} bxc4 {[%emt 0:02:23]} 24. Bxc4 {[%emt 0:01:17]} Qe7 {[%emt 0:02:19]} 25. Be3 {[%emt 0:04:37]} Bxe3+ {[%emt 0:01:14]} 26. Qxe3 {[%emt 0:00:06]} Nf4 {[%emt 0:00:28]} 27. Kh1 {[%emt 0:01:59]} Nh5 {[%emt 0:00:37]} 28. b3 {[%emt 0:01:48]} Qh4 {[%emt 0:00:22]} 29. Re1 {[%emt 0:02:25]} Re8 {[%emt 0:00:40]} 30. Qb6 {[%emt 0:02:02]} Qe7 {[%emt 0:00:32]} 31. a4 {[%emt 0:02:21]} Qc7 {[%emt 0:00:31]} 32. Qf2 {[%emt 0:01:22]} Qe7 {[%emt 0:00:26]} 33. Nf1 {[%emt 0:00:49]} Nf4 {[%emt 0:00:14]} 34. Ng3 {[%emt 0:01:19]} Bd5 {[%emt 0:00:50]} 35. Bxa6 {[%emt 0:01:15]} Rxc1 {[%emt 0:00:09]} 36. Rxc1 {[%emt 0:00:04]} Bxb3 {[%emt 0:00:09]} 37. Bb5 {[%emt 0:00:16]} Rd8 {[%emt 0:00:16]} 38. Qe3 {[%emt 0:01:24]} Qa3 {[%emt 0:01:06]} 39. Rg1 {[%emt 0:01:19]} Qb2 {[%emt 0:00:34]} 40. a5 {[%emt 0:00:45]} Be6 {[%emt 0:00:26]} 41. Bf1 {[%emt 0:00:31]} Rd1 {[%emt 0:00:42]} 42. a6 {[%emt 0:00:27]} Ra1 {[%emt 0:00:28]} 43. a7 {[%emt 0:00:33]} f6 {[%emt 0:00:36]} 44. Ne2 {[%emt 0:00:20]} Qa3 {[%emt 0:00:27]} 45. Qe4 {[%emt 0:00:44]} Nxe2 {[%emt 0:00:26]} 46. Bxe2 {[%emt 0:00:19]} Qxa7 {[%emt 0:00:07]} 47. Bf1 {[%emt 0:00:14]} Qd4 {[%emt 0:00:37]} 48. Qc6 {[%emt 0:00:25]} Bf5 {[%emt 0:00:33]} 49. Qb5 {[%emt 0:00:32]} Kh7 {[%emt 0:00:18]} 50. Qe2 {[%emt 0:00:39]} Rd1 {[%emt 0:00:44]} 51. Qb5 {[%emt 0:00:48]} Qf2 {[%emt 0:00:20]} 52. Qe2 {[%emt 0:00:22]} Qxe2 {[%emt 0:00:20]} 53. Bxe2 {[%emt 0:00:04]} Rxg1+ {[%emt 0:00:04]} 54. Kxg1 {[%emt 0:00:04]} Kg8 {[%emt 0:00:34]} 55. Kf2 {[%emt 0:00:05]} Kf7 {[%emt 0:00:05]} 56. Ke3 {[%emt 0:00:09]} Ke6 {[%emt 0:00:13]} 57. f4 {[%emt 0:00:37]} exf4+ {[%emt 0:00:21]} 58. Kxf4 {[%emt 0:00:01]} g5+ {[%emt 0:00:06]} 59. Ke3 {[%emt 0:00:04]} Ke5 {[%emt 0:03:22]} 60. g3 {[%emt 0:00:14]} Bg6 {[%emt 0:00:00]} 61. Bc4 {[%emt 0:00:46]} f5 {[%emt 0:00:00]} 62. Be2 {[%emt 0:00:26]} f4+ {[%emt 0:00:00]} 63. Kf2 {[%emt 0:00:16]} h5 {[%emt 0:00:00]} 64. Bc4 {[%emt 0:00:57]} g4 {[%emt 0:00:00]} 65. Bb5 {[%emt 0:00:00]} 1/2-1/2

[Event "2nd Namma Bengaluru Open-B 2025"]
[Site "Bengaluru"]
[Date "2025.04.11"]
[Round "4.6"]
[White "Malla, Nooka Raju"]
[Black "Bhosale Saarth"]
[Result "1-0"]
[Annotator "NA"]
[ECO "D53"]
[WhiteElo "1860"]
[BlackElo "1754"]
[PlyCount "71"]
[EventDate "2025.04.10"]
[EventType "swiss"]
[EventCountry "IND"]
[SourceTitle "playchess.com"]
[Source "ChessBase"]
[SourceQuality "1"]
[TimeControl "3600+30"]

1. d4 {[%emt 0:00:32]} d5 {[%emt 0:00:11]} 2. c4 {[%emt 0:00:08]} e6 {[%emt 0:00:05]} 3. Nc3 {[%emt 0:00:19]} Nf6 {[%emt 0:00:12]} 4. Nf3 {[%emt 0:00:24]} Nbd7 {[%emt 0:00:19]} 5. Bg5 {[%emt 0:02:22]} Be7 {[%emt 0:00:14]} 6. e3 {[%emt 0:00:29]} a6 {[%emt 0:00:08]} 7. cxd5 {[%emt 0:03:18]} exd5 {[%emt 0:01:18]} 8. Bd3 {[%emt 0:00:55]} O-O {[%emt 0:01:20]} 9. O-O {[%emt 0:02:00]} b6 {[%emt 0:01:12]} 10. Ne5 {[%emt 0:02:54]} Bb7 {[%emt 0:01:57]} 11. Qf3 {[%emt 0:08:11]} Nxe5 {[%emt 0:13:50]} 12. dxe5 {[%emt 0:00:59]} Nd7 {[%emt 0:00:46]} 13. Qh3 {[%emt 0:20:07]} g6 {[%emt 0:00:12]} 14. Bh6 {[%emt 0:03:21]} Nxe5 {[%emt 0:02:46]} 15. Bxf8 {[%emt 0:03:46]} Nxd3 {[%emt 0:00:29]} 16. Bxe7 {[%emt 0:07:06]} Qxe7 {[%emt 0:00:05]} 17. Rab1 {[%emt 0:05:27]} Rd8 {[%emt 0:05:46]} 18. Rfd1 {[%emt 0:00:34]} Ne5 {[%emt 0:00:21]} 19. Qg3 {[%emt 0:01:04]} c5 {[%emt 0:02:06]} 20. Ne2 {[%emt 0:00:20]} Bc8 {[%emt 0:05:35]} 21. b3 {[%emt 0:00:51]} Bf5 {[%emt 0:03:45]} 22. Rb2 {[%emt 0:00:18]} Nc6 {[%emt 0:09:09]} 23. Rbd2 {[%emt 0:00:53]} Be6 {[%emt 0:02:01]} 24. Nf4 {[%emt 0:01:18]} d4 {[%emt 0:01:09]} 25. Ne2 {[%emt 0:00:57]} Bf5 {[%emt 0:01:04]} 26. Qf4 {[%emt 0:00:57]} d3 {[%emt 0:00:35]} 27. Ng3 {[%emt 0:00:28]} Be6 {[%emt 0:01:12]} 28. Rxd3 {[%emt 0:00:52]} Rxd3 {[%emt 0:00:13]} 29. Rxd3 {[%emt 0:00:04]} Nb4 {[%emt 0:00:04]} 30. Rd2 {[%emt 0:02:16]} b5 {[%emt 0:00:23]} 31. Ne4 {[%emt 0:00:36]} c4 {[%emt 0:00:17]} 32. Qe5 {[%emt 0:00:14]} Nd3 {[%emt 0:02:16]} 33. Nf6+ {[%emt 0:00:45]} Kh8 {[%emt 0:00:36]} 34. Rxd3 {[%emt 0:00:37]} cxd3 {[%emt 0:00:03]} 35. Nd5+ {[%emt 0:00:08]} f6 {[%emt 0:00:01]} 36. Qb8+ {[%emt 0:00:17]} 1-0

[Event "2nd Namma Bengaluru Open-B 2025"]
[Site "Bengaluru"]
[Date "2025.04.11"]
[Round "4.7"]
[White "Rishen Jilowa"]
[Black "Samaksh Ashok"]
[Result "0-1"]
[Annotator "NA"]
[ECO "A10"]
[WhiteElo "1751"]
[BlackElo "1858"]
[PlyCount "76"]
[EventDate "2025.04.10"]
[EventType "swiss"]
[EventCountry "IND"]
[SourceTitle "playchess.com"]
[Source "ChessBase"]
[SourceQuality "1"]
[TimeControl "3600+30"]

1. c4 {[%emt 0:00:03]} f5 {[%emt 0:00:10]} 2. g3 {[%emt 0:00:42]} Nf6 {[%emt 0:03:05]} 3. Bg2 {[%emt 0:00:07]} e6 {[%emt 0:00:16]} 4. b3 {[%emt 0:00:11]} d5 {[%emt 0:00:34]} 5. cxd5 {[%emt 0:00:34]} exd5 {[%emt 0:00:09]} 6. Bb2 {[%emt 0:00:06]} c6 {[%emt 0:01:09]} 7. Nf3 {[%emt 0:00:21]} Bd6 {[%emt 0:00:59]} 8. O-O {[%emt 0:00:13]} O-O {[%emt 0:00:34]} 9. d3 {[%emt 0:00:31]} Nbd7 {[%emt 0:01:10]} 10. Nbd2 {[%emt 0:00:13]} Re8 {[%emt 0:01:17]} 11. Re1 {[%emt 0:00:56]} Qc7 {[%emt 0:01:10]} 12. Qc2 {[%emt 0:00:56]} Nc5 {[%emt 0:55:57]} 13. Bxf6 {[%emt 0:05:22]} gxf6 {[%emt 0:00:00]} 14. e4 {[%emt 0:00:09]} Be6 {[%emt 0:00:00]} 15. Nd4 {[%emt 0:01:33]} fxe4 {[%emt 0:00:00]} 16. dxe4 {[%emt 0:01:05]} Bf7 {[%emt 0:00:00]} 17. exd5 {[%emt 0:23:10]} cxd5 {[%emt 0:00:00]} 18. Nf5 {[%emt 0:02:30]} Bf8 {[%emt 0:00:00]} 19. Rac1 {[%emt 0:03:05]} Qb6 {[%emt 0:00:00]} 20. Nf3 {[%emt 0:02:09]} Rac8 {[%emt 0:00:00]} 21. N3d4 {[%emt 0:02:28]} Qb4 {[%emt 0:00:00]} 22. Rxe8 {[%emt 0:02:06]} Rxe8 {[%emt 0:00:00]} 23. Qd1 {[%emt 0:00:21]} Qa5 {[%emt 0:00:00]} 24. Qg4+ {[%emt 0:05:42]} Kh8 {[%emt 0:00:00]} 25. Nf3 {[%emt 0:11:23]} Re4 {[%emt 0:00:00]} 26. Qh3 {[%emt 0:00:05]} Qxa2 {[%emt 0:00:00]} 27. N3d4 {[%emt 0:01:48]} Qd2 {[%emt 0:00:00]} 28. Rf1 {[%emt 0:05:04]} Rxd4 {[%emt 0:00:00]} 29. Nxd4 {[%emt 0:00:01]} Qxd4 {[%emt 0:00:00]} 30. Qc8 {[%emt 0:01:08]} Kg7 {[%emt 0:00:00]} 31. Qc7 {[%emt 0:00:37]} Nxb3 {[%emt 0:09:30]} 32. Qxb7 {[%emt 0:00:59]} Nd2 {[%emt 0:00:00]} 33. Rd1 {[%emt 0:00:05]} Bc5 {[%emt 0:00:00]} 34. Bxd5 {[%emt 0:00:08]} Qxd5 {[%emt 0:01:30]} 35. Qxd5 {[%emt 0:00:11]} Bxd5 {[%emt 0:00:00]} 36. Rxd2 {[%emt 0:00:04]} Be4 {[%emt 0:00:00]} 37. Re2 {[%emt 0:00:17]} Bf5 {[%emt 0:00:00]} 38. Ra2 {[%emt 0:00:19]} Bb6 {[%emt 0:02:00]} 0-1